fUST/lending_fUST_20250609
["ID","MTS","AMOUNT","RATE_DAILY","PERIOD"]
[365082099,1749451847930,-440.0,0.00022739,4]
[365082100,1749451847941,-760.39,0.00022739,4]
[365082101,1749451847951,-585.56,0.00022739,4]
[365082102,1749451847961,-514.65,0.00022739,4]
[365082103,1749451847971,-735.1,0.00022739,4]
[365082104,1749451847980,-843.15,0.00022739,4]
[365082105,1749451847990,-440.0,0.00022739,4]
[365082106,1749451848000,-692.8,0.00022739,4]
[365082107,1749451848011,-991.76,0.00022739,4]
[365082108,1749451848021,-933.44,0.00022739,4]
[365082109,1749451848031,-440.0,0.00022739,4]
[365082110,1749451848041,-440.0,0.00022739,4]
[365082111,1749451848051,-440.0,0.00022739,4]
[365082112,1749451848061,-440.0,0.00022739,4]
[365082113,1749451848070,-440.0,0.00022739,4]
[365082114,1749451848080,-448.86,0.00022739,4]
[365082115,1749451848090,-581.03,0.00022739,4]
[365082116,1749451848099,-800.0,0.00022744,2]
[365082117,1749451848109,-800.0,0.00022768,2]
[365082118,1749451848119,-157.844069,0.00022829,5]
[365082119,1749451848128,-177.44644,0.00022829,5]
[365082120,1749451848138,-212.17306492,0.00022831,8]
[365082121,1749451848148,-800.0,0.00022847,2]
[365082122,1749451848158,-800.0,0.00022847,2]
[365082123,1749451848168,-500.0,0.0002288,2]
[365082124,1749451848178,-1263.46,0.00022899,4]
[365082125,1749451848188,-1263.46,0.00022899,4]
[365082126,1749451848198,-1263.46,0.00022899,4]
[365082127,1749451848208,-151.0,0.000229,7]
[365082128,1749451848218,-151.0,0.000229,7]
[365082129,1749451848227,-151.0,0.000229,7]
[365082130,1749451848237,-151.17877,0.000229,7]
[365082131,1749451848247,-151.0,0.000229,7]
[365082132,1749451848257,-151.0,0.000229,7]
[365082133,1749451848267,-151.0,0.000229,7]
[365082134,1749451848277,-151.0,0.000229,7]
[365082135,1749451848286,-151.0,0.000229,7]
[365082136,1749451848296,-151.213498,0.000229,7]
[365082137,1749451848305,-151.0,0.000229,7]
[365082138,1749451848315,-151.0,0.000229,7]
[365082139,1749451848325,-158.477208,0.000229,7]
[365082140,1749451848334,-159.010247,0.000229,7]
[365082141,1749451848344,-151.0,0.000229,7]
[365082142,1749451848354,-151.0,0.000229,7]
[365082143,1749451848363,-151.0,0.000229,7]
[365082144,1749451848373,-151.0,0.000229,7]
[365082145,1749451848383,-151.0,0.000229,7]
[365082146,1749451848518,-152.085158,0.000229,7]
[365082147,1749451848529,-248.152831,0.000229,2]
[365082148,1749451848540,-151.0,0.000229,7]
[365082149,1749451848550,-248.152831,0.000229,2]
[365082150,1749451848559,-152.612341,0.000229,7]
[365082151,1749451848569,-151.19018,0.000229,7]
[365082152,1749451848579,-151.0,0.000229,7]
[365082153,1749451848588,-58198.03875454,0.000229,2]
[365082154,1749451848598,-151.0,0.000229,7]
[365082155,1749451848608,-151.834973,0.000229,7]
[365082156,1749451848618,-151.0,0.000229,7]
[365082157,1749451848627,-151.0,0.000229,7]
[365082158,1749451848637,-151.0,0.000229,7]
[365082159,1749451848647,-151.0,0.000229,7]
[365082160,1749451848657,-151.0,0.000229,7]
[365082161,1749451848666,-151.0,0.000229,7]
[365082162,1749451848676,-800.0,0.00022904,2]
[365082163,1749451848686,-306.0,0.00022904,2]
[365082164,1749451848696,-153.0,0.00022904,2]
[365082165,1749451848705,-153.0,0.00022904,2]
[365082166,1749451848715,-153.0,0.00022904,2]
[365082167,1749451848725,-153.0,0.00022904,2]
[365082168,1749451848735,-153.0,0.00022904,2]
[365082169,1749451848745,-153.0,0.00022904,2]
[365082170,1749451848755,-153.0,0.00022904,2]
[365082171,1749451848765,-153.0,0.00022904,2]
[365082172,1749451848775,-153.0,0.00022904,2]
[365082173,1749451848784,-153.0,0.00022904,2]
[365082174,1749451848794,-153.0,0.00022904,2]
[365082175,1749451848804,-153.0,0.00022904,2]
[365082176,1749451848814,-153.0,0.00022904,2]
[365082177,1749451848824,-153.0,0.00022904,2]
[365082178,1749451848834,-153.0,0.00022904,2]
[365082179,1749451848843,-259.8782008,0.00022904,2]
[365082180,1749451848853,-153.0,0.00022904,2]
[365082181,1749451848863,-306.0,0.00022904,2]
[365082182,1749451848872,-151.0,0.00022918,7]
[365082183,1749451848882,-151.0,0.00022918,7]
[365082184,1749451848891,-151.0,0.00022918,7]
[365082185,1749451848901,-151.0,0.00022918,7]
[365082186,1749451848915,-151.0,0.00022918,7]
[365082187,1749451848925,-1263.46,0.00022918,4]
[365082188,1749451848935,-800.0,0.0002293,2]
[365082189,1749451848944,-212.17306492,0.00022934,8]
[365082190,1749451848954,-676.54165178,0.00022937,2]
[365082191,1749451848964,-1263.46,0.00022999,4]
[365082192,1749451848974,-1263.46,0.00022999,4]
[365082193,1749451848984,-1263.46,0.00022999,4]
[365082194,1749451848994,-1263.46,0.00022999,4]
[365082195,1749451849004,-1263.46,0.00022999,4]
[365082196,1749451849014,-1263.46,0.00022999,4]
[365082197,1749451849023,-1263.46,0.00022999,4]
[365082198,1749451849033,-1263.46,0.00022999,4]
[365082199,1749451849043,-1263.46,0.00022999,4]
[365082200,1749451849053,-1263.695659,0.00022999,4]
[365082201,1749451849063,-39053.56,0.00023,7]
[365082202,1749451849073,-461.75,0.00023,7]
[365082203,1749451849083,-65385.84541245,0.00023,2]
[365082204,1749451849093,-248.5227469,0.00023,2]
[365082205,1749451849102,-503.10562059,0.00023,2]
[365082206,1749451849112,-3896.51565224,0.00023,2]
[365082207,1749451849122,-2000.0,0.00023,2]
[365082208,1749451849132,-151.55668,0.00023,7]
[365082209,1749451849142,-151.0,0.00023,7]
[365082210,1749451849152,-151.185424,0.00023,7]
[365082211,1749451849162,-151.0,0.00023,7]
[365082212,1749451849172,-153.011059,0.00023,7]
[365082213,1749451849181,-151.0,0.00023,7]
[365082214,1749451849191,-151.0,0.00023,7]
[365082215,1749451849201,-195.1142,0.00023,7]
[365082216,1749451849211,-152.054922,0.00023,7]
[365082217,1749451849221,-151.0,0.00023,7]
[365082218,1749451849231,-151.0,0.00023,7]
[365082219,1749451849242,-153.026588,0.00023,7]
[365082220,1749451849251,-151.0,0.00023,7]
[365082221,1749451849261,-151.0,0.00023,7]
[365082222,1749451849271,-151.0,0.00023,7]
[365082223,1749451849281,-152.970277,0.00023,7]
[365082224,1749451849291,-151.876905,0.00023,7]
[365082225,1749451849301,-151.0,0.00023,7]
[365082226,1749451849311,-151.0,0.00023,7]
[365082227,1749451849321,-151.0,0.00023,7]
[365082228,1749451849330,-152.998808,0.00023,7]
[365082229,1749451849340,-151.0,0.00023,7]
[365082230,1749451849350,-151.0,0.00023,7]
[365082231,1749451849359,-151.0,0.00023,7]
[365082232,1749451849369,-156.578294,0.00023,7]
[365082233,1749451849379,-164.130632,0.00023,7]
[365082234,1749451849389,-151.0,0.00023,7]
[365082235,1749451849401,-158.038136,0.00023,7]
[365082236,1749451849412,-151.0,0.00023,7]
[365082237,1749451849422,-248.152831,0.00023,2]
[365082238,1749451849433,-248.152831,0.00023,2]
[365082239,1749451849443,-151.0,0.00023,7]
[365082240,1749451849454,-151.0,0.00023,7]
[365082241,1749451849463,-151.0,0.00023,7]
[365082242,1749451849474,-151.0,0.00023,7]
[365082243,1749451849484,-151.0,0.00023,7]
[365082244,1749451849496,-440.0,0.00023013,4]
[365082245,1749451849506,-440.0,0.00023013,4]
[365082246,1749451849516,-440.0,0.00023013,4]
[365082247,1749451849526,-400.0,0.00023013,2]
[365082248,1749451849536,-3979.61,0.00023013,4]
[365082249,1749451849545,-440.0,0.00023013,4]
[365082250,1749451849555,-440.0,0.00023013,4]
[365082251,1749451849565,-613.7,0.00023013,4]
[365082252,1749451849574,-440.0,0.00023013,4]
[365082253,1749451849584,-1260.42,0.00023013,4]
[365082254,1749451849594,-440.0,0.00023013,4]
[365082255,1749451849604,-760.39,0.00023013,4]
[365082256,1749451849613,-585.56,0.00023013,4]
[365082257,1749451849623,-514.65,0.00023013,4]
[365082258,1749451849633,-735.1,0.00023013,4]
[365082259,1749451849643,-843.15,0.00023013,4]
[365082260,1749451849652,-692.8,0.00023013,4]
[365082261,1749451849662,-991.76,0.00023013,4]
[365082262,1749451849671,-933.44,0.00023013,4]
[365082263,1749451849681,-440.0,0.00023013,4]
[365082264,1749451849691,-440.0,0.00023013,4]
[365082265,1749451849701,-440.0,0.00023013,4]
[365082266,1749451849711,-440.0,0.00023013,4]
[365082267,1749451849720,-440.0,0.00023013,4]
[365082268,1749451849730,-448.86,0.00023013,4]
[365082269,1749451849740,-212.17306492,0.00023038,8]
[365082270,1749451849750,-157.844069,0.0002304,30]
[365082271,1749451849760,-160.0,0.00023045,3]
[365082272,1749451849770,-11523.98715627,0.00023067,3]
[365082273,1749451849780,-5000.0,0.00023083,2]
[365082274,1749451849789,-157.844069,0.00023095,7]
[365082275,1749451849799,-162.17309574,0.00023096,2]
[365082276,1749451849808,-20084.49373782,0.000231,7]
[365082277,1749451849819,-725.77,0.000231,7]
[365082278,1749451849831,-153.0,0.00023123,2]
[365082279,1749451849842,-212.17306492,0.00023141,8]
[365082280,1749451849852,-515.99395455,0.00023178,5]
[365082281,1749451849863,-157.844069,0.00023205,10]
[365082282,1749451849873,-162.17309574,0.00023205,2]
[365082283,1749451849882,-1000.0,0.00023232,2]
[365082284,1749451849892,-302.57965815,0.00023233,120]
[365082285,1749451849902,-676.54165178,0.00023236,2]
[365082286,1749451849912,-151.0,0.0002324,7]
[365082287,1749451849925,-151.0,0.0002324,7]
[365082288,1749451849936,-151.0,0.0002324,7]
[365082289,1749451849946,-151.0,0.0002324,7]
[365082290,1749451849957,-248.152831,0.0002324,2]
[365082291,1749451849967,-248.152831,0.0002324,2]
[365082292,1749451849978,-2481.0,0.0002324,2]
[365082293,1749451849991,-212.17306492,0.00023245,8]
[365082294,1749451850001,-151.0,0.00023273,7]
[365082295,1749451850011,-151.0,0.00023273,7]
[365082296,1749451850021,-247.026127,0.00023273,7]
[365082297,1749451850031,-151.0,0.00023273,7]
[365082298,1749451850041,-165.94748894,0.00023287,4]
[365082299,1749451850051,-440.0,0.00023287,4]
[365082300,1749451850061,-400.0,0.00023287,2]
[365082301,1749451850070,-3979.61,0.00023287,4]
[365082302,1749451850080,-440.0,0.00023287,4]
[365082303,1749451850090,-440.0,0.00023287,4]
[365082304,1749451850100,-613.7,0.00023287,4]
[365082305,1749451850109,-440.0,0.00023287,4]
[365082306,1749451850119,-1260.42,0.00023287,4]
[365082307,1749451850128,-440.0,0.00023287,4]
[365082308,1749451850138,-760.39,0.00023287,4]
[365082309,1749451850148,-585.56,0.00023287,4]
[365082310,1749451850157,-514.65,0.00023287,4]
[365082311,1749451850166,-735.1,0.00023287,4]
[365082312,1749451850176,-843.15,0.00023287,4]
[365082313,1749451850186,-692.8,0.00023287,4]
[365082314,1749451850195,-991.76,0.00023287,4]
[365082315,1749451850205,-933.44,0.00023287,4]
[365082316,1749451850214,-163.33,0.00023287,4]
[365082317,1749451850224,-440.0,0.00023287,4]
[365082318,1749451850234,-440.0,0.00023287,4]
[365082319,1749451850245,-448.86,0.00023287,4]
[365082320,1749451850254,-162.17309574,0.00023342,2]
[365082321,1749451850264,-212.17306492,0.00023348,9]
[365082322,1749451850274,-2789.0,0.00023418,2]
[365082323,1749451850284,-2481.0,0.00023447,2]
[365082324,1749451850293,-212.17306492,0.00023452,9]
[365082325,1749451850303,-162.17309574,0.00023452,2]
[365082326,1749451850312,-500.0,0.00023473,2]
[365082327,1749451850323,-440.21646713,0.00023473,2]
[365082328,1749451850333,-500.0,0.00023473,2]
[365082329,1749451850342,-500.0,0.00023473,2]
[365082330,1749451850352,-151.73122747,0.00023473,2]
[365082331,1749451850362,-212.04283448,0.00023473,2]
[365082332,1749451850372,-504.30310197,0.00023473,2]
[365082333,1749451850382,-500.0,0.00023473,2]
[365082334,1749451850391,-500.0,0.00023473,2]
[365082335,1749451850402,-502.62145331,0.00023473,2]
[365082336,1749451850417,-501.34650844,0.00023473,2]
[365082337,1749451850427,-500.0,0.00023473,2]
[365082338,1749451850437,-109049.33938048,0.00023499,2]
[365082339,1749451879823,333.53,0.00016689,2]
[365082340,1749451880194,162.23859,0.00018207,2]
[365082341,1749451880219,504.83141,0.00018207,2]
[365082342,1749451961223,320.8,0.00016552,2]
[365082343,1749451961647,540.78609,0.00018057,2]
[365082344,1749451961674,100.81391,0.00018057,2]
[365082346,1749452041673,308.55,0.0001648,2]
[365082347,1749452042121,617.1,0.00017978,2]
[365082349,1749452120559,296.77,0.00016467,2]
[365082350,1749452121098,43.18359,0.00017963,2]
[365082351,1749452121124,550.35641,0.00017963,2]
[365082352,1749452204288,285.44,0.00016418,2]
[365082353,1749452204693,530.62109,0.00017911,2]
[365082354,1749452204720,40.24891,0.00017911,2]
[365082355,1749452285466,274.54,0.00016399,2]
[365082356,1749452286109,549.08,0.0001789,2]
[365082357,1749452328890,186.0,0.000189,2]
[365082358,1749452367983,264.06,0.00016409,2]
[365082359,1749452368396,52.48859,0.00017901,2]
[365082360,1749452368421,475.62141,0.00017901,2]
[365082363,1749452447497,253.97,0.00016417,2]
[365082364,1749452447953,507.95,0.00017909,2]
[365082365,1749452531199,128.87609,0.00016435,2]
[365082366,1749452531226,142.64391,0.00016435,2]
[365082367,1749452531612,543.05,0.00017929,2]
[365082368,1749452613036,261.16,0.00016466,2]
[365082369,1749452613444,419.56359,0.00017963,2]
[365082370,1749452613470,102.74641,0.00017963,2]
[365082371,1749452674606,164.023064,0.00013699,2]
[365082374,1749452692266,251.19,0.00016461,2]
[365082375,1749452692720,502.37,0.00017958,2]
[365082376,1749452735137,-525.57257592,0.00019,2]
[365082377,1749452771791,241.59,0.0001645,2]
[365082378,1749452772226,483.19,0.00017945,2]
[365082379,1749452852916,232.37,0.00016471,2]
[365082380,1749452853119,464.74,0.00017968,2]
[365082382,1749452934581,223.5,0.00016471,2]
[365082383,1749452934994,107.8596438,0.00017968,2]
[365082384,1749452935022,339.1403562,0.00017968,2]
[365082385,1749452959096,-500.0,0.00018,2]
[365082386,1749452959307,-500.0,0.000185,2]
[365082387,1749452959330,-500.0,0.000185,2]
[365082388,1749452959352,-150.0,0.000189,2]
[365082389,1749452959373,-87.42742408,0.00019,2]
[365082390,1749452959395,-500.0,0.00019,2]
[365082391,1749452959417,-500.0,0.00019,2]
[365082392,1749452959440,-490.98080679,0.00019466,2]
[365082393,1749453015280,208.72,0.00016477,2]
[365082394,1749453015704,417.43,0.00017975,2]
[365082409,1749453032431,-500.0,0.00019,2]
[365082410,1749453032442,-626.15,0.00019472,2]
[365082411,1749453032452,-500.0,0.000195,2]
[365082412,1749453032464,-103.94430685,0.000195,2]
[365082414,1749453032475,-287.16716765,0.000195,2]
[365082417,1749453032487,-108.8885255,0.000195,2]
[365082419,1749453032497,-500.0,0.000195,2]
[365082421,1749453032507,-500.0,0.0002,2]
[365082423,1749453032517,-500.0,0.0002,2]
[365082424,1749453032526,-164.023064,0.00020187,2]
[365082425,1749453032535,-61.77929626,0.00020328,2]
[365082426,1749453032685,-238.22070374,0.00020328,2]
[365082428,1749453032696,-300.0,0.00020328,2]
[365082430,1749453032707,-468.28915539,0.00020328,2]
[365082431,1749453032733,-48.71084461,0.00020328,2]
[365082432,1749453032744,-309.09193846,0.00020329,2]
[365082447,1749453038692,-500.0,0.000195,2]
[365082448,1749453038703,-1955.4,0.00020329,2]
[365082449,1749453038716,-845.33624538,0.00020329,2]
[365082450,1749453038728,-1014.04516778,0.00020329,2]
[365082465,1749453043593,-9939.72002988,0.00020329,2]
[365082466,1749453043604,-158.689502,0.00020432,2]
[365082467,1749453043614,-236.722877,0.00020496,2]
[365082468,1749453043624,-747.9591807,0.00020695,2]
[365082469,1749453043634,-229.64266968,0.00020753,2]
[365082470,1749453043644,-424.05420114,0.00020753,2]
[365082471,1749453043659,-213.08899333,0.00020753,2]
[365082473,1749453043670,-160.0,0.00020753,2]
[365082474,1749453043680,-834.7738823,0.00020753,2]
[365082476,1749453043692,-160.0,0.00020819,2]
[365082477,1749453043703,-4143.4259029,0.00020927,2]
[365082478,1749453043712,-834.86,0.0002097,2]
[365082479,1749453043722,-500.0,0.00021,2]
[365082480,1749453043731,-164.9228556,0.00021484,2]
[365082481,1749453043741,-368.20773932,0.00021584,2]
[365082485,1749453046696,-4631.79226068,0.00021584,2]
[365082486,1749453046707,-1000.0,0.00021584,2]
[365082487,1749453046716,-1000.0,0.00021584,2]
[365082488,1749453046726,-1000.0,0.00021584,2]
[365082489,1749453046737,-74.38520685,0.00021584,2]
[365082490,1749453046749,-925.61479315,0.00021584,2]
[365082491,1749453046759,-1000.0,0.00021584,2]
[365082492,1749453046770,-1000.0,0.00021584,2]
[365082493,1749453046780,-929.48444535,0.00021584,2]
[365082494,1749453046790,-207.4,0.00021584,2]
[365082495,1749453046799,-175.72721156,0.000219,2]
[365082496,1749453094019,264.71,0.00016504,2]
[365082498,1749453174588,261.34,0.00016531,2]
[365082502,1749453254853,258.02,0.00016715,2]
[365082506,1749453336701,254.73,0.00016697,2]
[365082513,1749453417904,251.49,0.00016659,2]
[365082515,1749453585299,248.29,0.00016808,2]
[365082517,1749453662421,163.76207,0.00013699,2]
[365082518,1749453667609,245.13,0.00016702,2]
[365082519,1749453749121,242.01,0.00016703,2]
[365082520,1749453830676,238.93,0.00016703,2]
[365082523,1749453910880,235.89,0.0001675,2]
[365082525,1749453991970,232.89,0.00016809,2]
[365082528,1749454073463,229.92,0.00016811,2]
[365082536,1749454144615,300.0,0.00017999,2]
[365082537,1749454153154,-15394.0512,0.00018,2]
[365082538,1749454153174,-139.12605575,0.000189,2]
[365082539,1749454154040,227.0,0.00016811,2]
[365082557,1749454232805,-235.95741445,0.000188,2]
[365082558,1749454232814,-10.87394425,0.000189,2]
[365082559,1749454232824,-144.5414813,0.0002,2]
[365082563,1749454232896,-1339.1242853,0.0002,2]
[365082565,1749454233066,-1843.86680999,0.0002,2]
[365082566,1749454233077,-250.0,0.00020138,2]
[365082567,1749454233091,-163.76207,0.00020548,2]
[365082568,1749454233103,-164.9228556,0.00020641,2]
[365082569,1749454233113,-1069.0,0.00020697,2]
[365082570,1749454233124,-300.0,0.00020698,2]
[365082571,1749454233134,-300.0,0.00020698,2]
[365082572,1749454233144,-11918.1852991,0.00020699,2]
[365082573,1749454233154,-213.08899333,0.00020727,2]
[365082574,1749454233163,-160.0,0.00020727,2]
[365082575,1749454233173,-1021.2703376,0.00020901,2]
[365082576,1749454233183,-207.4,0.00021584,2]
[365082577,1749454233192,-5000.0,0.00021584,2]
[365082578,1749454233202,-500.0,0.00021584,2]
[365082579,1749454233211,-1688.0,0.00021584,2]
[365082580,1749454233221,-3012.37290403,0.00021584,2]
[365082581,1749454233231,-732.716885,0.00021671,2]
[365082582,1749454233241,-709.08,0.00021804,2]
[365082583,1749454233250,-229.64266968,0.00021897,2]
[365082584,1749454233261,-424.05420114,0.00021897,2]
[365082585,1749454233270,-834.7738823,0.00021897,2]
[365082586,1749454233281,-2824.27278844,0.000219,2]
[365082587,1749454233291,-59020.995116,0.000219,7]
[365082588,1749454233301,-153.871,0.000219,2]
[365082589,1749454233311,-244.93654571,0.000219,6]
[365082590,1749454233321,-155.0,0.000219,2]
[365082591,1749454233331,-185.35,0.000219,10]
[365082592,1749454233341,-709.08,0.00021904,2]
[365082593,1749454233350,-3000.0,0.0002191,2]
[365082594,1749454233360,-283.08292955,0.00021914,2]
[365082595,1749454233370,-500.0,0.00021914,2]
[365082596,1749454233379,-500.0,0.00021914,2]
[365082597,1749454233389,-398.25634191,0.00021914,2]
[365082598,1749454233399,-500.0,0.00021914,2]
[365082599,1749454233409,-500.0,0.00021914,2]
[365082600,1749454233419,-500.0,0.00021914,2]
[365082601,1749454233429,-500.0,0.00021914,2]
[365082602,1749454233439,-440.0,0.00021917,4]
[365082603,1749454233449,-440.0,0.00021917,4]
[365082604,1749454233459,-440.0,0.00021917,4]
[365082605,1749454233469,-229.04348935,0.00021917,4]
[365082606,1749454233479,-440.0,0.00021917,4]
[365082607,1749454233489,-442.95650153,0.00021917,4]
[365082608,1749454233499,-440.0,0.00021917,4]
[365082609,1749454233509,-440.0,0.00021917,4]
[365082610,1749454233519,-440.0,0.00021917,2]
[365082611,1749454233528,-440.0,0.00021917,4]
[365082612,1749454233538,-440.0,0.00021917,4]
[365082613,1749454233548,-440.0,0.00021917,4]
[365082614,1749454233558,-440.0,0.00021917,4]
[365082615,1749454233567,-440.0,0.00021917,4]
[365082616,1749454233577,-299.82794083,0.00021917,4]
[365082617,1749454233586,-430.0,0.00021917,4]
[365082618,1749454233596,-565.3157289,0.00021917,4]
[365082619,1749454233608,-440.0,0.00021917,4]
[365082620,1749454233619,-187.81,0.00021917,4]
[365082621,1749454233629,-296.29529491,0.00021917,4]
[365082622,1749454233639,-445.18410455,0.00021917,4]
[365082623,1749454233648,-436.74464738,0.00021917,4]
[365082624,1749454233659,-440.0,0.00021917,4]
[365082625,1749454233668,-440.0,0.00021917,4]
[365082626,1749454233678,-370.0,0.00021917,4]
[365082627,1749454233689,-440.0,0.00021917,4]
[365082628,1749454233699,-2984.71,0.00021917,4]
[365082629,1749454233709,-440.0,0.00021917,4]
[365082630,1749454233718,-198.991,0.00021917,4]
[365082631,1749454233728,-500.0,0.00021917,4]
[365082632,1749454233737,-500.0,0.00021917,4]
[365082633,1749454233747,-500.0,0.00021917,4]
[365082634,1749454233756,-500.0,0.00021917,4]
[365082635,1749454233767,-500.0,0.00021917,4]
[365082636,1749454233777,-606.95,0.00021917,4]
[365082637,1749454233786,-440.0,0.00021917,4]
[365082638,1749454233796,-440.0,0.00021917,4]
[365082639,1749454233805,-440.0,0.00021917,4]
[365082640,1749454233815,-1177.91,0.00021917,4]
[365082641,1749454233825,-440.0,0.00021917,4]
[365082642,1749454233834,-440.0,0.00021917,4]
[365082643,1749454233843,-514.32,0.00021917,4]
[365082644,1749454233852,-585.84,0.00021917,4]
[365082645,1749454233861,-257.95673216,0.00021917,4]
[365082646,1749454233871,-373.8827273,0.00021917,4]
[365082647,1749454233880,-440.0,0.00021917,4]
[365082648,1749454233890,-440.0,0.00021917,4]
[365082649,1749454233900,-757.99,0.00021917,4]
[365082650,1749454233910,-440.0,0.00021917,4]
[365082651,1749454233919,-756.8,0.00021917,4]
[365082652,1749454233929,-827.68,0.00021917,4]
[365082653,1749454233939,-440.0,0.00021917,4]
[365082654,1749454233948,-863.73,0.00021917,4]
[365082655,1749454233958,-440.0,0.00021917,4]
[365082656,1749454233968,-440.0,0.00021917,4]
[365082657,1749454233977,-440.0,0.00021917,4]
[365082658,1749454233987,-440.0,0.00021917,4]
[365082659,1749454233996,-722.69,0.00021917,4]
[365082660,1749454234006,-860.89,0.00021917,4]
[365082661,1749454234015,-440.0,0.00021917,4]
[365082662,1749454234025,-446.65,0.00021917,4]
[365082663,1749454234034,-440.0,0.00021917,4]
[365082664,1749454234044,-440.0,0.00021917,4]
[365082665,1749454234053,-3000.0,0.0002192,2]
[365082666,1749454234063,-3000.0,0.0002193,2]
[365082667,1749454234073,-3000.0,0.0002194,2]
[365082668,1749454234083,-500.0,0.00021949,4]
[365082669,1749454234092,-3000.0,0.0002195,2]
[365082670,1749454234102,-244.64,0.0002195,3]
[365082671,1749454234112,-3000.0,0.0002196,2]
[365082672,1749454234122,-3000.0,0.0002197,2]
[365082673,1749454234132,-3000.0,0.0002198,2]
[365082674,1749454234142,-3000.0,0.0002199,2]
[365082675,1749454234152,-4331.852228,0.00022,2]
[365082676,1749454234162,-500.0,0.00022,2]
[365082677,1749454234173,-244.93654545,0.00022003,6]
[365082678,1749454234183,-709.08,0.00022004,6]
[365082679,1749454234193,-151.0,0.00022072,7]
[365082680,1749454234202,-240.377342,0.00022072,7]
[365082681,1749454234212,-151.0,0.00022072,7]
[365082682,1749454234223,-317.0857498,0.00022082,2]
[365082683,1749454234233,-307.1121227,0.00022082,2]
[365082684,1749454234242,-153.0,0.00022082,2]
[365082685,1749454234252,-356.9308481,0.00022082,2]
[365082686,1749454234263,-573.244939,0.00022082,2]
[365082687,1749454234273,-158.7201836,0.00022082,2]
[365082688,1749454234283,-176.7945791,0.00022082,2]
[365082689,1749454234293,-573.244939,0.00022082,2]
[365082690,1749454234303,-153.0,0.00022082,2]
[365082691,1749454234313,-176.7945793,0.00022082,2]
[365082692,1749454234323,-158.7201836,0.00022082,2]
[365082693,1749454234332,-573.244939,0.00022082,2]
[365082694,1749454234342,-153.0,0.00022082,2]
[365082695,1749454234352,-158.7201836,0.00022082,2]
[365082696,1749454234362,-573.244939,0.00022082,2]
[365082697,1749454234372,-158.7201836,0.00022082,2]
[365082698,1749454234382,-176.7945791,0.00022082,2]
[365082699,1749454234393,-573.244939,0.00022082,2]
[365082700,1749454234403,-158.7201836,0.00022082,2]
[365082701,1749454234413,-573.244939,0.00022082,2]
[365082702,1749454234422,-176.7945793,0.00022082,2]
[365082703,1749454234432,-176.7945791,0.00022082,2]
[365082704,1749454234442,-158.7201836,0.00022082,2]
[365082705,1749454234452,-573.244939,0.00022082,2]
[365082706,1749454234461,-158.7201836,0.00022082,2]
[365082707,1749454234471,-176.7945793,0.00022082,2]
[365082708,1749454234481,-573.244939,0.00022082,2]